[Event "*** Titled Tuesday Blitz"]
[Site "Chess.com"]
[Date "2018.08.07"]
[Round "1"]
[White "narutosmith"]
[Black "LucaBrasi1968"]
[Result "0-1"]
[WhiteElo "2097"]
[BlackElo "2478"]
[TimeControl "180+2"]
[EndTime "13:12:14 PDT"]
[Termination "LucaBrasi1968 won on time"]

1. e4 {[%clk 0:03:00]} 1... c6 {[%clk 0:02:59.9]} 2. d4 {[%clk 0:03:00.7]} 2...
d5 {[%clk 0:02:59.5]} 3. e5 {[%clk 0:03:02.1]} 3... Bf5 {[%clk 0:02:59.8]} 4.
Nd2 {[%clk 0:03:03.5]} 4... e6 {[%clk 0:03:00.4]} 5. Nb3 {[%clk 0:03:04.7]} 5...
Nd7 {[%clk 0:02:56.8]} 6. Nf3 {[%clk 0:03:05.7]} 6... h6 {[%clk 0:02:57.8]} 7.
Be2 {[%clk 0:03:04.9]} 7... Ne7 {[%clk 0:02:57.6]} 8. O-O {[%clk 0:03:04.4]}
8... Bh7 {[%clk 0:02:54]} 9. a4 {[%clk 0:03:03.5]} 9... a5 {[%clk 0:02:53.2]}
10. Ne1 {[%clk 0:02:59.8]} 10... Nf5 {[%clk 0:02:51.1]} 11. Nd3 {[%clk
0:03:00.7]} 11... Be7 {[%clk 0:02:49.9]} 12. c3 {[%clk 0:02:45.7]} 12... O-O
{[%clk 0:02:49.6]} 13. f4 {[%clk 0:02:37.9]} 13... b6 {[%clk 0:02:48.9]} 14. Bg4
{[%clk 0:02:22.3]} 14... c5 {[%clk 0:02:47.7]} 15. Bxf5 {[%clk 0:02:20.3]} 15...
Bxf5 {[%clk 0:02:47.3]} 16. Ne1 {[%clk 0:02:11.6]} 16... Rc8 {[%clk 0:02:43.1]}
17. Be3 {[%clk 0:02:11.2]} 17... Bh7 {[%clk 0:02:24.5]} 18. g4 {[%clk
0:02:09.2]} 18... f5 {[%clk 0:02:19.1]} 19. Ng2 {[%clk 0:01:45]} 19... fxg4
{[%clk 0:02:18.9]} 20. Qxg4 {[%clk 0:01:43.3]} 20... Bf5 {[%clk 0:02:19.5]} 21.
Qg3 {[%clk 0:01:41]} 21... Qe8 {[%clk 0:01:48]} 22. Nd2 {[%clk 0:01:23.4]} 22...
cxd4 {[%clk 0:01:43.3]} 23. Bxd4 {[%clk 0:01:23.2]} 23... Nc5 {[%clk 0:01:40.5]}
24. Ne3 {[%clk 0:01:20.7]} 24... Bd3 {[%clk 0:01:29.9]} 25. Rf2 {[%clk
0:01:16.8]} 25... Qf7 {[%clk 0:01:29.4]} 26. b4 {[%clk 0:00:55.9]} 26... axb4
{[%clk 0:01:27.7]} 27. cxb4 {[%clk 0:00:56.7]} 27... Ne4 {[%clk 0:01:28.8]} 28.
Nxe4 {[%clk 0:00:57.6]} 28... Bxe4 {[%clk 0:01:30.1]} 29. a5 {[%clk 0:00:55.9]}
29... bxa5 {[%clk 0:01:29.7]} 30. bxa5 {[%clk 0:00:56.5]} 30... Kh7 {[%clk
0:01:19.8]} 31. a6 {[%clk 0:00:55.8]} 31... Rg8 {[%clk 0:01:12.1]} 32. a7 {[%clk
0:00:52.3]} 32... Qe8 {[%clk 0:01:07.7]} 33. f5 {[%clk 0:00:43.3]} 33... Bg5
{[%clk 0:01:01.1]} 34. h4 {[%clk 0:00:19.6]} 34... Bxe3 {[%clk 0:00:57.7]} 35.
Qg6+ {[%clk 0:00:20.3]} 35... Qxg6+ {[%clk 0:00:52.5]} 36. fxg6+ {[%clk
0:00:22.2]} 36... Bxg6 {[%clk 0:00:49.9]} 37. Bxe3 {[%clk 0:00:24.1]} 37... Bf5
{[%clk 0:00:47.5]} 38. Rfa2 {[%clk 0:00:21.6]} 38... Ra8 {[%clk 0:00:47.3]} 39.
Rc1 {[%clk 0:00:21.1]} 39... d4 {[%clk 0:00:46.5]} 40. Bxd4 {[%clk 0:00:21.4]}
40... Be4 {[%clk 0:00:47.5]} 41. Rc7 {[%clk 0:00:22.3]} 41... Bd5 {[%clk
0:00:47.7]} 42. Rf2 {[%clk 0:00:22.2]} 42... Rgf8 {[%clk 0:00:44.7]} 43. Rff7
{[%clk 0:00:22.2]} 43... Rxf7 {[%clk 0:00:45.3]} 44. Rxf7 {[%clk 0:00:23]} 44...
Rc8 {[%clk 0:00:45.1]} 45. Re7 {[%clk 0:00:19.8]} 45... Rc4 {[%clk 0:00:45.6]}
46. Bf2 {[%clk 0:00:19.2]} 46... Rg4+ {[%clk 0:00:44.7]} 47. Kf1 {[%clk
0:00:19.8]} 47... Ra4 {[%clk 0:00:46.1]} 48. Rc7 {[%clk 0:00:19.4]} 48... Kg6
{[%clk 0:00:45.8]} 49. Bb6 {[%clk 0:00:18.4]} 49... Kf5 {[%clk 0:00:44.4]} 50.
Rxg7 {[%clk 0:00:18.5]} 50... Kxe5 {[%clk 0:00:45.2]} 51. Bc7+ {[%clk
0:00:18.9]} 51... Kf6 {[%clk 0:00:43.1]} 52. Rh7 {[%clk 0:00:17.4]} 52... Kg6
{[%clk 0:00:41.4]} 53. Re7 {[%clk 0:00:17.5]} 53... Rxa7 {[%clk 0:00:39.6]} 54.
Bd6 {[%clk 0:00:17.1]} 54... Ra6 {[%clk 0:00:37.6]} 55. Bc5 {[%clk 0:00:17.3]}
55... h5 {[%clk 0:00:36.8]} 56. Re8 {[%clk 0:00:16.1]} 56... Rc6 {[%clk
0:00:31.8]} 57. Bb4 {[%clk 0:00:15.6]} 57... Rc4 {[%clk 0:00:32.5]} 58. Be1
{[%clk 0:00:14.7]} 58... Rf4+ {[%clk 0:00:31.1]} 59. Kg1 {[%clk 0:00:14.7]}
59... Rg4+ {[%clk 0:00:28.7]} 60. Kf1 {[%clk 0:00:11.2]} 60... Kf5 {[%clk
0:00:25.1]} 61. Rf8+ {[%clk 0:00:11.2]} 61... Ke4 {[%clk 0:00:26.1]} 62. Rh8
{[%clk 0:00:11.9]} 62... Kf3 {[%clk 0:00:25.4]} 63. Bf2 {[%clk 0:00:10.2]} 63...
Bc4+ {[%clk 0:00:25.1]} 64. Ke1 {[%clk 0:00:10.4]} 64... Re4+ {[%clk 0:00:26.2]}
65. Kd2 {[%clk 0:00:10.1]} 65... Kxf2 {[%clk 0:00:26.4]} 66. Rxh5 {[%clk
0:00:11]} 66... Bd5 {[%clk 0:00:25.8]} 67. Kd3 {[%clk 0:00:10.3]} 67... Kg3
{[%clk 0:00:25.8]} 68. Rh6 {[%clk 0:00:08.4]} 68... Rxh4 {[%clk 0:00:26.4]} 69.
Rg6+ {[%clk 0:00:09.5]} 69... Rg4 {[%clk 0:00:27.5]} 70. Rf6 {[%clk 0:00:10.1]}
70... Rf4 {[%clk 0:00:28.4]} 71. Rg6+ {[%clk 0:00:10.3]} 71... Kf3 {[%clk
0:00:29.5]} 72. Rg7 {[%clk 0:00:10.3]} 72... Ra4 {[%clk 0:00:28.3]} 73. Rf7+
{[%clk 0:00:10.6]} 73... Rf4 {[%clk 0:00:29.3]} 74. Rg7 {[%clk 0:00:11.4]} 74...
Be4+ {[%clk 0:00:28.7]} 75. Kd2 {[%clk 0:00:11.7]} 75... Bf5 {[%clk 0:00:29.5]}
76. Re7 {[%clk 0:00:11.8]} 76... Ra4 {[%clk 0:00:28.2]} 77. Rc7 {[%clk
0:00:10.6]} 77... Ra2+ {[%clk 0:00:27.9]} 78. Kd1 {[%clk 0:00:10.9]} 78... e5
{[%clk 0:00:26.5]} 79. Rc3+ {[%clk 0:00:10.5]} 79... Kf4 {[%clk 0:00:26.7]} 80.
Rc5 {[%clk 0:00:10.8]} 80... e4 {[%clk 0:00:27.3]} 81. Rc4 {[%clk 0:00:10.9]}
81... Bg4+ {[%clk 0:00:26.6]} 82. Ke1 {[%clk 0:00:09.7]} 82... Bf3 {[%clk
0:00:27.2]} 83. Rc3 {[%clk 0:00:07.1]} 83... e3 {[%clk 0:00:26.6]} 84. Rc4+
{[%clk 0:00:06.9]} 84... Be4 {[%clk 0:00:27.6]} 85. Rc3 {[%clk 0:00:05.4]} 85...
Kf3 {[%clk 0:00:24.9]} 86. Rc1 {[%clk 0:00:04.3]} 86... Rh2 {[%clk 0:00:24.4]}
0-1

[Event "*** Titled Tuesday Blitz"]
[Site "Chess.com"]
[Date "2018.08.07"]
[Round "1"]
[White "GMKrikor"]
[Black "WarlordX"]
[Result "1-0"]
[WhiteElo "2788"]
[BlackElo "2387"]
[TimeControl "180+2"]
[EndTime "13:12:25 PDT"]
[Termination "GMKrikor won by checkmate"]

1. e4 {[%clk 0:02:55.9]} 1... c5 {[%clk 0:03:01]} 2. Nf3 {[%clk 0:02:49.2]} 2...
Nc6 {[%clk 0:03:01.1]} 3. Bb5 {[%clk 0:02:38.2]} 3... Nf6 {[%clk 0:02:50.4]} 4.
Nc3 {[%clk 0:02:36.4]} 4... a6 {[%clk 0:02:48.9]} 5. Bxc6 {[%clk 0:02:30.7]}
5... dxc6 {[%clk 0:02:50.3]} 6. d3 {[%clk 0:02:28.1]} 6... g6 {[%clk 0:02:51.1]}
7. h3 {[%clk 0:02:28.4]} 7... Bg7 {[%clk 0:02:52.3]} 8. a4 {[%clk 0:02:29.6]}
8... a5 {[%clk 0:02:51]} 9. Be3 {[%clk 0:02:30.8]} 9... b6 {[%clk 0:02:52.2]}
10. Qd2 {[%clk 0:02:32.4]} 10... Qc7 {[%clk 0:02:52.6]} 11. Bh6 {[%clk
0:02:27.8]} 11... O-O {[%clk 0:02:53]} 12. O-O {[%clk 0:02:26.3]} 12... Rd8
{[%clk 0:02:53.8]} 13. Bxg7 {[%clk 0:02:10.6]} 13... Kxg7 {[%clk 0:02:54.8]} 14.
Qe3 {[%clk 0:02:11.2]} 14... e5 {[%clk 0:02:54.4]} 15. Nh2 {[%clk 0:01:51.9]}
15... Nh5 {[%clk 0:02:45.3]} 16. Ne2 {[%clk 0:01:40.9]} 16... Be6 {[%clk
0:02:36.3]} 17. b3 {[%clk 0:01:27.7]} 17... Qd6 {[%clk 0:02:31.4]} 18. f4 {[%clk
0:01:09.1]} 18... exf4 {[%clk 0:02:28.4]} 19. Nxf4 {[%clk 0:01:11]} 19... Nxf4
{[%clk 0:02:29.3]} 20. Qxf4 {[%clk 0:01:05]} 20... Qxf4 {[%clk 0:02:29.9]} 21.
Rxf4 {[%clk 0:01:06.9]} 21... b5 {[%clk 0:02:27.1]} 22. Rf2 {[%clk 0:01:05.7]}
22... c4 {[%clk 0:02:24.8]} 23. axb5 {[%clk 0:00:54.7]} 23... cxb5 {[%clk
0:02:22.3]} 24. bxc4 {[%clk 0:00:54.1]} 24... bxc4 {[%clk 0:02:22.5]} 25. Ra3
{[%clk 0:00:55.5]} 25... a4 {[%clk 0:02:21.2]} 26. Nf3 {[%clk 0:00:55.9]} 26...
cxd3 {[%clk 0:02:16.3]} 27. cxd3 {[%clk 0:00:57.8]} 27... Bb3 {[%clk 0:02:11.2]}
28. Rd2 {[%clk 0:00:58.6]} 28... Re8 {[%clk 0:02:09.7]} 29. Nd4 {[%clk
0:00:55.5]} 29... Be6 {[%clk 0:01:58.7]} 30. Kf2 {[%clk 0:00:54.7]} 30... Ra6
{[%clk 0:01:56.6]} 31. Ke3 {[%clk 0:00:55.9]} 31... Rb8 {[%clk 0:01:52.4]} 32.
Nxe6+ {[%clk 0:00:54.8]} 32... fxe6 {[%clk 0:01:53.2]} 33. Rda2 {[%clk
0:00:56.7]} 33... Rb4 {[%clk 0:01:53.8]} 34. Kd2 {[%clk 0:00:57.3]} 34... e5
{[%clk 0:01:50.5]} 35. Kc3 {[%clk 0:00:58.6]} 35... Rd4 {[%clk 0:01:52.1]} 36.
Rb2 {[%clk 0:00:58]} 36... Rad6 {[%clk 0:01:52.5]} 37. Kc2 {[%clk 0:00:57.6]}
37... g5 {[%clk 0:01:52.6]} 38. Rb5 {[%clk 0:00:57.9]} 38... Kf6 {[%clk
0:01:53.2]} 39. Ra5 {[%clk 0:00:59.6]} 39... Rc6+ {[%clk 0:01:53.7]} 40. Kd2
{[%clk 0:01:00.2]} 40... Rb6 {[%clk 0:01:50.9]} 41. R5xa4 {[%clk 0:00:51.1]}
41... Rb2+ {[%clk 0:01:50.4]} 42. Kc3 {[%clk 0:00:49.6]} 42... Rxa4 {[%clk
0:01:47.4]} 43. Rxa4 {[%clk 0:00:51.5]} 43... Rxg2 {[%clk 0:01:48.2]} 44. Ra6+
{[%clk 0:00:53.2]} 44... Kf7 {[%clk 0:01:48.1]} 45. Kc4 {[%clk 0:00:54.7]} 45...
Rd2 {[%clk 0:01:48.3]} 46. Ra3 {[%clk 0:00:54.8]} 46... h5 {[%clk 0:01:45.6]}
47. Kd5 {[%clk 0:00:55.8]} 47... Kf6 {[%clk 0:01:47.2]} 48. Ra6+ {[%clk
0:00:56.1]} 48... Kf7 {[%clk 0:01:48.6]} 49. Kxe5 {[%clk 0:00:56.7]} 49... Rxd3
{[%clk 0:01:49.6]} 50. Kf5 {[%clk 0:00:53.7]} 50... Rxh3 {[%clk 0:01:49.1]} 51.
Ra7+ {[%clk 0:00:55.1]} 51... Ke8 {[%clk 0:01:50.3]} 52. Kxg5 {[%clk 0:00:30.4]}
52... h4 {[%clk 0:01:51.3]} 53. Kf6 {[%clk 0:00:30.4]} 53... Re3 {[%clk
0:01:48.5]} 54. e5 {[%clk 0:00:31.4]} 54... h3 {[%clk 0:01:47.2]} 55. Rh7 {[%clk
0:00:30.5]} 55... Kd8 {[%clk 0:01:39.8]} 56. Ke6 {[%clk 0:00:27.3]} 56... Ra3
{[%clk 0:01:30.1]} 57. Rh8+ {[%clk 0:00:27.5]} 57... Kc7 {[%clk 0:01:31.3]} 58.
Ke7 {[%clk 0:00:27.7]} 58... Rg3 {[%clk 0:01:32.3]} 59. e6 {[%clk 0:00:27.2]}
59... Rf3 {[%clk 0:01:22.3]} 60. Ke8 {[%clk 0:00:27.2]} 60... Kd6 {[%clk
0:01:21.9]} 61. e7 {[%clk 0:00:28.8]} 61... Re3 {[%clk 0:01:17]} 62. Rh6+ {[%clk
0:00:29.6]} 62... Kc7 {[%clk 0:01:18]} 63. Rh4 {[%clk 0:00:23.9]} 63... Kd6
{[%clk 0:01:13.4]} 64. Rd4+ {[%clk 0:00:24.8]} 64... Ke6 {[%clk 0:01:06.7]} 65.
Kd8 {[%clk 0:00:22.5]} 65... Kf5 {[%clk 0:01:01.1]} 66. Rh4 {[%clk 0:00:19.3]}
66... Kg5 {[%clk 0:00:58]} 67. Rxh3 {[%clk 0:00:20]} 67... Rxh3 {[%clk
0:00:53.2]} 68. e8=Q {[%clk 0:00:21.4]} 68... Rf3 {[%clk 0:00:51.8]} 69. Qe5+
{[%clk 0:00:21.3]} 69... Rf5 {[%clk 0:00:53]} 70. Qg7+ {[%clk 0:00:21.9]} 70...
Kf4 {[%clk 0:00:53.9]} 71. Kd7 {[%clk 0:00:22.6]} 71... Ke4 {[%clk 0:00:54.2]}
72. Qc3 {[%clk 0:00:23]} 72... Rd5+ {[%clk 0:00:55]} 73. Ke6 {[%clk 0:00:24.3]}
73... Rd3 {[%clk 0:00:55.4]} 74. Qc2 {[%clk 0:00:24.6]} 74... Kd4 {[%clk
0:00:56]} 75. Kf5 {[%clk 0:00:24.7]} 75... Re3 {[%clk 0:00:56.8]} 76. Kf4 {[%clk
0:00:25.8]} 76... Rc3 {[%clk 0:00:55.8]} 77. Qd2+ {[%clk 0:00:26.5]} 77... Rd3
{[%clk 0:00:57.1]} 78. Qb2+ {[%clk 0:00:27.8]} 78... Kd5 {[%clk 0:00:56.8]} 79.
Qb5+ {[%clk 0:00:26.1]} 79... Kd4 {[%clk 0:00:57.9]} 80. Qe5+ {[%clk 0:00:27.4]}
80... Kc4 {[%clk 0:00:58.9]} 81. Ke4 {[%clk 0:00:29]} 81... Rd1 {[%clk
0:00:57.5]} 82. Qc7+ {[%clk 0:00:25.7]} 82... Kb3 {[%clk 0:00:58.3]} 83. Qb6+
{[%clk 0:00:26.6]} 83... Kc3 {[%clk 0:00:58.4]} 84. Qc5+ {[%clk 0:00:27.5]}
84... Kb3 {[%clk 0:00:58.7]} 85. Ke3 {[%clk 0:00:25.2]} 85... Kb2 {[%clk
0:00:55.6]} 86. Qc4 {[%clk 0:00:25.6]} 86... Kb1 {[%clk 0:00:54.4]} 87. Qc3
{[%clk 0:00:20]} 87... Rc1 {[%clk 0:00:46.8]} 88. Qb3+ {[%clk 0:00:21.2]} 88...
Ka1 {[%clk 0:00:48]} 89. Qa3+ {[%clk 0:00:22.6]} 89... Kb1 {[%clk 0:00:49.5]}
90. Qb4+ {[%clk 0:00:14]} 90... Kc2 {[%clk 0:00:48.9]} 91. Ke2 {[%clk
0:00:13.6]} 91... Ra1 {[%clk 0:00:39.6]} 92. Qc4+ {[%clk 0:00:13.7]} 92... Kb2
{[%clk 0:00:40.7]} 93. Kd2 {[%clk 0:00:14.6]} 93... Ra3 {[%clk 0:00:41.3]} 94.
Qd4+ {[%clk 0:00:13.4]} 94... Kb1 {[%clk 0:00:40.9]} 95. Qb4+ {[%clk 0:00:14.5]}
95... Ka2 {[%clk 0:00:41.4]} 96. Kc2 {[%clk 0:00:14.5]} 96... Rh3 {[%clk
0:00:34.9]} 97. Qa5+ {[%clk 0:00:11.7]} 97... Ra3 {[%clk 0:00:34.8]} 98. Qd5+
{[%clk 0:00:12.9]} 98... Ka1 {[%clk 0:00:36.1]} 99. Qd1+ {[%clk 0:00:14]} 99...
Ka2 {[%clk 0:00:37.6]} 100. Qb1# {[%clk 0:00:15.5]} 1-0

[Event "*** Titled Tuesday Blitz"]
[Site "Chess.com"]
[Date "2018.08.07"]
[Round "1"]
[White "HovmoellerHest"]
[Black "Iball95"]
[Result "1-0"]
[WhiteElo "2266"]
[BlackElo "2524"]
[TimeControl "180+2"]
[EndTime "13:12:38 PDT"]
[Termination "HovmoellerHest won by checkmate"]

1. d4 {[%clk 0:03:01.3]} 1... d6 {[%clk 0:02:54.3]} 2. c4 {[%clk 0:03:00.3]}
2... e5 {[%clk 0:02:53.9]} 3. d5 {[%clk 0:02:57.9]} 3... f5 {[%clk 0:02:51.5]}
4. Nc3 {[%clk 0:02:58.2]} 4... Nf6 {[%clk 0:02:51.6]} 5. g3 {[%clk 0:02:59.3]}
5... g6 {[%clk 0:02:52.3]} 6. Bg2 {[%clk 0:03:00.3]} 6... Bg7 {[%clk 0:02:53.8]}
7. e4 {[%clk 0:02:44.3]} 7... O-O {[%clk 0:02:46.1]} 8. exf5 {[%clk 0:02:12.1]}
8... Bxf5 {[%clk 0:02:48]} 9. Nf3 {[%clk 0:02:10.6]} 9... Na6 {[%clk 0:02:44.7]}
10. O-O {[%clk 0:02:09.5]} 10... Nc5 {[%clk 0:02:44.9]} 11. Be3 {[%clk
0:02:00.4]} 11... Bd3 {[%clk 0:02:17.7]} 12. Re1 {[%clk 0:01:55.8]} 12... Bxc4
{[%clk 0:02:18.9]} 13. Bxc5 {[%clk 0:01:56.1]} 13... dxc5 {[%clk 0:02:17.4]} 14.
Nxe5 {[%clk 0:01:54.7]} 14... Ba6 {[%clk 0:02:18.8]} 15. Qb3 {[%clk 0:01:35.9]}
15... Qd6 {[%clk 0:02:11.9]} 16. Nb5 {[%clk 0:01:23.9]} 16... Bxb5 {[%clk
0:02:04.5]} 17. Qxb5 {[%clk 0:01:25.8]} 17... Rab8 {[%clk 0:01:39.8]} 18. Nc4
{[%clk 0:01:23.4]} 18... Qd7 {[%clk 0:01:21.7]} 19. Qxc5 {[%clk 0:01:23.4]}
19... Ng4 {[%clk 0:01:22.5]} 20. Re2 {[%clk 0:01:16.7]} 20... b5 {[%clk
0:01:19]} 21. Na5 {[%clk 0:01:13.5]} 21... Rbe8 {[%clk 0:01:16.7]} 22. Rae1
{[%clk 0:01:08.9]} 22... Rxe2 {[%clk 0:01:09.1]} 23. Rxe2 {[%clk 0:01:09.3]}
23... Qf5 {[%clk 0:01:10.3]} 24. Be4 {[%clk 0:00:45.6]} 24... Qh5 {[%clk
0:01:07.2]} 25. h4 {[%clk 0:00:44.7]} 25... Ne5 {[%clk 0:01:01.6]} 26. Qc2
{[%clk 0:00:39.4]} 26... Qg4 {[%clk 0:00:55.6]} 27. Kg2 {[%clk 0:00:30.2]} 27...
Nc4 {[%clk 0:00:53.6]} 28. Nxc4 {[%clk 0:00:29.7]} 28... bxc4 {[%clk 0:00:53.8]}
29. Qxc4 {[%clk 0:00:30.1]} 29... Be5 {[%clk 0:00:51.6]} 30. Qd3 {[%clk
0:00:27.6]} 30... Bd6 {[%clk 0:00:46.1]} 31. Bf3 {[%clk 0:00:28]} 31... Qd7
{[%clk 0:00:46.9]} 32. Re6 {[%clk 0:00:28.5]} 32... Qf7 {[%clk 0:00:47.8]} 33.
Qe4 {[%clk 0:00:26.3]} 33... Kg7 {[%clk 0:00:47]} 34. b4 {[%clk 0:00:26.3]}
34... Rb8 {[%clk 0:00:44.1]} 35. a3 {[%clk 0:00:26.9]} 35... Rf8 {[%clk
0:00:42.8]} 36. Qe2 {[%clk 0:00:20.9]} 36... Qf5 {[%clk 0:00:38.9]} 37. Re4
{[%clk 0:00:21.6]} 37... Rf7 {[%clk 0:00:36.6]} 38. Rc4 {[%clk 0:00:22]} 38...
Re7 {[%clk 0:00:35.2]} 39. Re4 {[%clk 0:00:22.9]} 39... Rf7 {[%clk 0:00:36.1]}
40. Rc4 {[%clk 0:00:24.1]} 40... Re7 {[%clk 0:00:36.8]} 41. Re4 {[%clk
0:00:25.3]} 41... Rf7 {[%clk 0:00:34.6]} 42. Bg4 {[%clk 0:00:26.3]} 42... Qf6
{[%clk 0:00:32.1]} 43. Be6 {[%clk 0:00:27.3]} 43... Rf8 {[%clk 0:00:33.2]} 44.
Re3 {[%clk 0:00:27.5]} 44... Qd4 {[%clk 0:00:33.8]} 45. Qd3 {[%clk 0:00:26.7]}
45... Qb2 {[%clk 0:00:33.1]} 46. Qc3+ {[%clk 0:00:26.8]} 46... Qxc3 {[%clk
0:00:32.2]} 47. Rxc3 {[%clk 0:00:28.7]} 47... Ra8 {[%clk 0:00:33.8]} 48. f4
{[%clk 0:00:25.5]} 48... a5 {[%clk 0:00:33.7]} 49. b5 {[%clk 0:00:26.8]} 49...
a4 {[%clk 0:00:29]} 50. Kf3 {[%clk 0:00:27.3]} 50... Rb8 {[%clk 0:00:27.7]} 51.
Bd7 {[%clk 0:00:28]} 51... Rf8 {[%clk 0:00:25.7]} 52. Ke4 {[%clk 0:00:28.3]}
52... Rf7 {[%clk 0:00:26.5]} 53. Be6 {[%clk 0:00:29.4]} 53... Rf8 {[%clk
0:00:27.9]} 54. Kd3 {[%clk 0:00:30.5]} 54... h6 {[%clk 0:00:22.5]} 55. Rc4
{[%clk 0:00:30.3]} 55... Bxa3 {[%clk 0:00:23.2]} 56. Rxa4 {[%clk 0:00:31.2]}
56... Bd6 {[%clk 0:00:25.1]} 57. Ra7 {[%clk 0:00:32.2]} 57... Kf6 {[%clk
0:00:25.4]} 58. Ke4 {[%clk 0:00:31.4]} 58... g5 {[%clk 0:00:26.2]} 59. hxg5+
{[%clk 0:00:26.2]} 59... hxg5 {[%clk 0:00:28.1]} 60. Rb7 {[%clk 0:00:26.5]}
60... gxf4 {[%clk 0:00:23.4]} 61. gxf4 {[%clk 0:00:27]} 61... Rh8 {[%clk
0:00:22]} 62. b6 {[%clk 0:00:23.3]} 62... cxb6 {[%clk 0:00:23.9]} 63. Rxb6
{[%clk 0:00:22.6]} 63... Ke7 {[%clk 0:00:25.1]} 64. Rb7+ {[%clk 0:00:23.2]}
64... Kf6 {[%clk 0:00:26.1]} 65. Rf7+ {[%clk 0:00:24.2]} 65... Kg6 {[%clk
0:00:27]} 66. f5+ {[%clk 0:00:24.9]} 66... Kg5 {[%clk 0:00:27.1]} 67. Rg7+
{[%clk 0:00:20.2]} 67... Kf6 {[%clk 0:00:28.2]} 68. Rg6+ {[%clk 0:00:21.4]}
68... Ke7 {[%clk 0:00:29.3]} 69. f6+ {[%clk 0:00:22.5]} 69... Kf8 {[%clk
0:00:30.6]} 70. Bg4 {[%clk 0:00:22.3]} 70... Rh1 {[%clk 0:00:19.3]} 71. Be6
{[%clk 0:00:22.3]} 71... Rh8 {[%clk 0:00:14.9]} 72. f7 {[%clk 0:00:23.1]} 72...
Ke7 {[%clk 0:00:15.3]} 73. Rg8 {[%clk 0:00:21.1]} 73... Rh4+ {[%clk 0:00:16.7]}
74. Kf5 {[%clk 0:00:22]} 74... Rf4+ {[%clk 0:00:17.6]} 75. Kg5 {[%clk
0:00:21.9]} 75... Rxf7 {[%clk 0:00:13]} 76. Bxf7 {[%clk 0:00:22.8]} 76... Kxf7
{[%clk 0:00:14.9]} 77. Ra8 {[%clk 0:00:23.3]} 77... Bc5 {[%clk 0:00:14.6]} 78.
Kf5 {[%clk 0:00:24.1]} 78... Ke7 {[%clk 0:00:15.9]} 79. Ke4 {[%clk 0:00:24.1]}
79... Kd6 {[%clk 0:00:17]} 80. Re8 {[%clk 0:00:25.1]} 80... Kd7 {[%clk 0:00:18]}
81. Re6 {[%clk 0:00:26.2]} 81... Bb4 {[%clk 0:00:19.3]} 82. Rc6 {[%clk
0:00:27.1]} 82... Ba3 {[%clk 0:00:19.7]} 83. Kf5 {[%clk 0:00:27.6]} 83... Bb2
{[%clk 0:00:18.4]} 84. Rb6 {[%clk 0:00:27.8]} 84... Bd4 {[%clk 0:00:19.4]} 85.
Ra6 {[%clk 0:00:28.6]} 85... Bb2 {[%clk 0:00:18.5]} 86. Ke4 {[%clk 0:00:28.6]}
86... Bc3 {[%clk 0:00:19.9]} 87. d6 {[%clk 0:00:29.3]} 87... Be1 {[%clk
0:00:18.2]} 88. Kd5 {[%clk 0:00:30.1]} 88... Bf2 {[%clk 0:00:19.8]} 89. Ra2
{[%clk 0:00:29.5]} 89... Bg1 {[%clk 0:00:19.1]} 90. Rg2 {[%clk 0:00:28.3]} 90...
Be3 {[%clk 0:00:20.3]} 91. Rg7+ {[%clk 0:00:28.3]} 91... Ke8 {[%clk 0:00:21.4]}
92. Ke6 {[%clk 0:00:29.1]} 92... Bb6 {[%clk 0:00:22.6]} 93. Rg8# {[%clk
0:00:30.1]} 1-0

[Event "*** Titled Tuesday Blitz"]
[Site "Chess.com"]
[Date "2018.08.07"]
[Round "2"]
[White "GMCanty"]
[Black "Maxim_e2e4"]
[Result "0-1"]
[WhiteElo "2234"]
[BlackElo "2394"]
[TimeControl "180+2"]
[EndTime "13:17:31 PDT"]
[Termination "Maxim_e2e4 won by resignation"]

1. e4 {[%clk 0:03:01.9]} 1... e5 {[%clk 0:03:00.5]} 2. Nf3 {[%clk 0:03:02.2]}
2... Nc6 {[%clk 0:03:01.7]} 3. d4 {[%clk 0:03:02.5]} 3... exd4 {[%clk
0:03:01.9]} 4. Bc4 {[%clk 0:03:03.8]} 4... Nf6 {[%clk 0:02:57.5]} 5. e5 {[%clk
0:03:05]} 5... d5 {[%clk 0:02:58.1]} 6. Bb5 {[%clk 0:03:06.5]} 6... Nd7 {[%clk
0:02:50.6]} 7. Bxc6 {[%clk 0:03:04]} 7... bxc6 {[%clk 0:02:52.5]} 8. O-O {[%clk
0:03:05.4]} 8... c5 {[%clk 0:02:50.7]} 9. c3 {[%clk 0:03:04.6]} 9... dxc3 {[%clk
0:02:41.7]} 10. Qxd5 {[%clk 0:03:02.3]} 10... cxb2 {[%clk 0:02:39.6]} 11. Bxb2
{[%clk 0:02:57]} 11... Nb6 {[%clk 0:02:40.2]} 12. Qe4 {[%clk 0:02:50.7]} 12...
Qd5 {[%clk 0:02:35.9]} 13. Qf4 {[%clk 0:02:47.9]} 13... Qc4 {[%clk 0:02:33]} 14.
Qe3 {[%clk 0:02:28.4]} 14... Be7 {[%clk 0:02:24]} 15. Nbd2 {[%clk 0:02:27.5]}
15... Qg4 {[%clk 0:02:14.4]} 16. h3 {[%clk 0:02:21.2]} 16... Qg6 {[%clk
0:02:07.4]} 17. Ne4 {[%clk 0:02:21.7]} 17... Bxh3 {[%clk 0:02:03.9]} 18. Ng3
{[%clk 0:02:19.6]} 18... Be6 {[%clk 0:02:00.2]} 19. Ba3 {[%clk 0:02:16.4]} 19...
Nc4 {[%clk 0:01:57.6]} 20. Qc3 {[%clk 0:02:15.8]} 20... h5 {[%clk 0:01:55.1]}
21. Rfe1 {[%clk 0:02:02.7]} 21... h4 {[%clk 0:01:50.5]} 22. Ne4 {[%clk
0:01:57.3]} 22... h3 {[%clk 0:01:49.3]} 23. g3 {[%clk 0:01:58.2]} 23... h2+
{[%clk 0:01:41.1]} 24. Kh1 {[%clk 0:01:50.6]} 24... Bd5 {[%clk 0:01:39.6]} 0-1

[Event "*** Titled Tuesday Blitz"]
[Site "Chess.com"]
[Date "2018.08.07"]
[Round "2"]
[White "jposthuma"]
[Black "rikyshi"]
[Result "1-0"]
[WhiteElo "2384"]
[BlackElo "2208"]
[TimeControl "180+2"]
[EndTime "13:18:22 PDT"]
[Termination "jposthuma won by resignation"]

1. d4 {[%clk 0:03:01.9]} 1... Nf6 {[%clk 0:02:57.8]} 2. c4 {[%clk 0:03:02.9]}
2... e6 {[%clk 0:02:59.2]} 3. g3 {[%clk 0:03:03.4]} 3... c5 {[%clk 0:02:57.8]}
4. Nf3 {[%clk 0:03:04]} 4... cxd4 {[%clk 0:02:53]} 5. Nxd4 {[%clk 0:03:05.9]}
5... Bb4+ {[%clk 0:02:45.7]} 6. Nd2 {[%clk 0:03:06.3]} 6... a6 {[%clk
0:02:43.1]} 7. Bg2 {[%clk 0:03:01.8]} 7... O-O {[%clk 0:02:42.4]} 8. O-O {[%clk
0:03:02.1]} 8... Nc6 {[%clk 0:02:42.3]} 9. Nc2 {[%clk 0:03:00.9]} 9... Bc5
{[%clk 0:02:40.3]} 10. a3 {[%clk 0:02:38.3]} 10... d5 {[%clk 0:02:39.8]} 11. b4
{[%clk 0:02:37.9]} 11... Ba7 {[%clk 0:02:40.8]} 12. Bb2 {[%clk 0:02:36.1]} 12...
dxc4 {[%clk 0:01:40.6]} 13. Nxc4 {[%clk 0:02:35.1]} 13... Qe7 {[%clk 0:01:41.2]}
14. Qd6 {[%clk 0:02:25.2]} 14... Rd8 {[%clk 0:01:33.1]} 15. Qxe7 {[%clk
0:02:23]} 15... Nxe7 {[%clk 0:01:35]} 16. Rfd1 {[%clk 0:02:18.1]} 16... Rd7
{[%clk 0:01:07.7]} 17. Ne5 {[%clk 0:02:10.3]} 17... Rxd1+ {[%clk 0:00:53.3]} 18.
Rxd1 {[%clk 0:02:12.1]} 18... Bb6 {[%clk 0:00:54.6]} 19. Nc4 {[%clk 0:02:07.1]}
19... Bc7 {[%clk 0:00:14.3]} 20. Be5 {[%clk 0:02:07.1]} 20... Nfd5 {[%clk
0:00:10.2]} 21. Bxc7 {[%clk 0:02:04.7]} 1-0